fUST/lending_fUST_20250308
["ID","MTS","AMOUNT","RATE_DAILY","PERIOD"]
[355648278,1741431122179,153.2,0.00043,33]
[355648279,1741431122360,153.2,0.00043,33]
[355648280,1741431122394,153.2,0.00043,33]
[355648281,1741431122421,153.2,0.00043,33]
[355648282,1741431122450,153.2,0.00043,33]
[355648283,1741431122482,42.80738498,0.00043,33]
[355648284,1741431122507,110.39261502,0.00043,33]
[355648285,1741431122534,153.2,0.00043,33]
[355648286,1741431122587,153.2,0.00043,33]
[355648295,1741431932116,-814.0061152,0.00034696,2]
[355648296,1741431932136,-451.3444199,0.000348,2]
[355648297,1741431932157,-162.084508,0.0003589,2]
[355648298,1741431932180,-289.11900257,0.00036556,100]
[355648299,1741431932202,-221.36399739,0.00036573,2]
[355648300,1741431932223,-250.0,0.00036656,2]
[355648301,1741431932245,-1246.25499845,0.00036657,3]
[355648302,1741431951148,-1925.27161749,0.000359,7]
[355648305,1741432027104,-93.52040306,0.000359,7]
[355648306,1741432027129,-2549.74081347,0.00036657,3]
[355648307,1741432034084,-1902.94076218,0.00036657,3]
[355648308,1741432034107,-488.47041849,0.00036657,3]
[355648309,1741432044077,-410.52225776,0.00036657,3]
[355648310,1741432044100,-892.47,0.00036657,3]
[355648311,1741432044124,-417.09605064,0.00036663,3]
[355648312,1741432047265,-602.50260376,0.00036663,3]
[355648313,1741432146133,-418.20949547,0.00036573,2]
[355648314,1741432146158,-221.36399738,0.00036573,2]
[355648315,1741432146183,-4637.2563187,0.00036657,3]
[355648316,1741432146211,-500.0,0.00036666,2]
[355648317,1741432146236,-500.0,0.00036666,2]
[355648318,1741432146261,-500.0,0.00036666,2]
[355648319,1741432146283,-500.0,0.00036666,2]
[355648320,1741432146460,-500.0,0.00036666,2]
[355648321,1741432146483,-500.0,0.00036666,2]
[355648322,1741432146505,-500.0,0.00036666,2]
[355648323,1741432146526,-500.0,0.00036666,2]
[355648324,1741432146549,-500.0,0.00036666,2]
[355648325,1741432146570,-500.0,0.00036666,2]
[355648326,1741432146597,-500.0,0.00036666,2]
[355648327,1741432146619,-500.0,0.00036666,2]
[355648328,1741432146641,-500.0,0.00036666,2]
[355648329,1741432146664,-500.0,0.00036666,2]
[355648330,1741432146685,-500.0,0.00036666,2]
[355648331,1741432146707,-500.0,0.00036666,2]
[355648332,1741432146727,-192.38819611,0.00036666,2]
[355648333,1741432146749,-500.0,0.00036666,2]
[355648334,1741432146772,-500.0,0.00036666,2]
[355648335,1741432146794,-500.0,0.00036666,2]
[355648336,1741432146814,-500.0,0.00036666,2]
[355648337,1741432146835,-500.0,0.00036666,2]
[355648338,1741432146857,-500.0,0.00036666,2]
[355648339,1741432146878,-500.0,0.00036666,2]
[355648340,1741432146899,-500.0,0.00036666,2]
[355648341,1741432146921,-500.0,0.00036666,2]
[355648342,1741432146943,-500.0,0.00036666,2]
[355648343,1741432146963,-500.0,0.00036666,2]
[355648344,1741432146984,-500.0,0.00036666,2]
[355648345,1741432147007,-418.67057515,0.00036666,2]
[355648346,1741432147028,-53.94635253,0.00036666,2]
[355648347,1741432149071,-446.05364747,0.00036666,2]
[355648348,1741432149095,-500.0,0.00036666,2]
[355648349,1741432149118,-500.0,0.00036666,2]
[355648350,1741432149141,-500.0,0.00036666,2]
[355648351,1741432149164,-500.0,0.00036666,2]
[355648352,1741432149187,-500.0,0.00036666,2]
[355648353,1741432149211,-500.0,0.00036666,2]
[355648354,1741432149233,-500.0,0.00036666,2]
[355648355,1741432149255,-500.0,0.00036666,2]
[355648356,1741432149277,-500.0,0.00036666,2]
[355648357,1741432149319,-485.34150054,0.00036666,2]
[355648358,1741432149362,-500.0,0.00036666,15]
[355648359,1741432149394,-156705.92585199,0.00036667,8]
[355648360,1741432152089,-155618.47427423,0.00036667,8]
[355648361,1741432152110,-500.0,0.00036673,5]
[355648362,1741432152131,-302.45734737,0.00036673,2]
[355648363,1741432152153,-500.0,0.00036673,2]
[355648364,1741432152175,-500.0,0.00036673,5]
[355648365,1741432152195,-500.0,0.00036673,5]
[355648366,1741432152217,-927.45126374,0.0003669,3]
[355648367,1741432152239,-929.29,0.000367,30]
[355648368,1741432152260,-1182.55,0.000367,30]
[355648369,1741432152282,-1951.49895315,0.000369,7]
[355648370,1741432152303,-503.78956182,0.00036947,5]
[355648371,1741432152327,-153.23,0.000381,31]
[355648372,1741432152351,-153.23,0.000381,31]
[355648373,1741432152376,-153.23,0.000381,31]
[355648374,1741432152400,-153.23,0.000381,31]
[355648375,1741432152423,-418.20949543,0.00039162,2]
[355648376,1741432152444,-418.20949543,0.0004175,28]
[355648377,1741432152465,-1000.0,0.00042152,10]
[355648378,1741432152486,-612.8802946,0.00042152,2]
[355648379,1741432152508,-1000.0,0.00042152,10]
[355648380,1741432152530,-162.084508,0.0004263,2]
[355648381,1741432152553,-153.23,0.00043,33]
[355648382,1741432152580,-21.95949427,0.00043,33]
[355648383,1741432158085,-131.27050573,0.00043,33]
[355648384,1741432158110,-153.23,0.00043,33]
[355648385,1741432158135,-153.23,0.00043,33]
[355648386,1741432158160,-153.23,0.00043,33]
[355648387,1741432158185,-153.23,0.00043,33]
[355648388,1741432158208,-153.23,0.00043,33]
[355648389,1741432158233,-153.23,0.00043,33]
[355648390,1741432158253,-500.0,0.00043,10]
[355648391,1741432158274,-144.43678484,0.00043,10]
[355648392,1741432161073,-355.56321516,0.00043,10]
[355648393,1741432161093,-621.54772806,0.00043,10]
[355648394,1741432161113,-478.2979507,0.00043,10]
[355648395,1741432161132,-500.0,0.00043,10]
[355648396,1741432161153,-999.0,0.00043835,120]
[355648397,1741432161174,-418.20949543,0.00044339,28]
[355648398,1741432161194,-999.0,0.00044657,120]
[355648399,1741432161581,501.36,0.00035,20]
[355648400,1741432166999,150.0,0.00034567,2]
[355648401,1741432167201,150.0,0.00039567,2]
[355648402,1741432213235,171.49090295,0.00036666,2]
[355648403,1741432213257,23.53909705,0.00036666,2]
[355648404,1741432213475,195.03,0.00038036,2]
[355648405,1741432213720,195.03,0.00039406,2]
[355648406,1741432213976,195.03,0.00040775,2]
[355648407,1741432214227,195.03,0.00042145,30]
[355648408,1741432214530,195.03,0.00043515,30]
[355648452,1741432236836,250.22209,0.000432,120]
[355648510,1741432238761,-195.03,0.00044885,30]
[355648512,1741432238772,-186.54478239,0.00045207,6]
[355648520,1741432238850,-66.94473375,0.00045207,6]
[355648696,1741432243717,-522.4884576,0.00045207,6]
[355648697,1741432243726,-231.5565308,0.00045318,2]
[355648707,1741432298098,814.2831196,0.00043835,120]
[355648708,1741432298121,184.7168804,0.00043835,120]
[355648713,1741432325372,1849.86072653,0.00043905,2]
[355648718,1741432634444,150.0,0.00025,2]
[355648719,1741432740958,150.0,0.00025,2]
[355648720,1741433140109,-597.22254833,0.00032418,2]
[355648721,1741433140136,-161.931295,0.0003589,2]
[355648722,1741433140159,-1886.44898819,0.000359,7]
[355648723,1741433140189,-153.2,0.000382,31]
[355648724,1741433140216,-153.2,0.000382,31]
[355648725,1741433140242,-153.2,0.000382,31]
[355648726,1741433140266,-202.015497,0.00042414,2]
[355648727,1741433140288,-198.5653945,0.00042591,5]
[355648728,1741433225083,-421.5972201,0.00042592,2]
[355648729,1741433225106,-550.0,0.00042999,5]
[355648730,1741433225135,-153.2,0.00043,33]
[355648731,1741433225160,-153.2,0.00043,33]
[355648732,1741433225189,-153.2,0.00043,33]
[355648733,1741433225216,-153.2,0.00043,33]
[355648734,1741433225243,-153.2,0.00043,33]
[355648735,1741433225269,-153.2,0.00043,33]
[355648736,1741433225291,-9.01630518,0.00043012,120]
[355648737,1741433225321,-222.2788969,0.00043012,120]
[355648738,1741433225343,-150.0,0.00043107,2]
[355648739,1741433225366,-161.931295,0.00043112,2]
[355648740,1741433225390,-273.2581411,0.00043544,2]
[355648741,1741433225411,-522.03921066,0.00043664,64]
[355648742,1741433226113,-1130.84568014,0.00043664,64]
[355648743,1741433229109,-3148.1939402,0.00043664,64]
[355648744,1741433229133,-482.94558537,0.00043905,2]
[355648745,1741433229157,-231.29520205,0.00044734,120]
[355648746,1741433229182,-1000.0,0.00045,30]
[355648747,1741433229206,-661.18284813,0.00045125,2]
[355648748,1741433229227,-639.18943352,0.00045187,2]
[355648751,1741433236262,-163.39531011,0.00045187,2]
[355648752,1741433236284,-136.437867,0.00045418,120]
[355648767,1741433324000,537.95653391,0.00025,30]
[355648775,1741433347087,-7297.83059002,0.00043522,2]
[355648776,1741433347109,-201.98207433,0.00043622,30]
[355648781,1741433372662,150.0,0.000429,2]
[355648783,1741433417476,1902.0808,0.00025,2]
[355648784,1741433417511,2038.61278056,0.00025,2]
[355648785,1741433417538,860.30641944,0.00025,2]
[355648800,1741433435239,-167.833,0.00045,120]
[355648801,1741433435249,-63.563133,0.00045418,120]
[355648802,1741433435259,-593.51,0.00045955,9]
[355648803,1741433435268,-259.90437234,0.00046291,2]
[355648827,1741433437707,-21.10658545,0.00046291,2]
[355648828,1741433437726,-231.29520205,0.00046456,120]
[355648829,1741433437737,-91.4042125,0.00047325,9]
[355648842,1741433438178,-63.5457875,0.00047325,9]
[355648844,1741433438188,-1000.0,0.00047679,6]
[355648846,1741433438197,-854.0,0.00047679,6]
[355648848,1741433438208,-30.45116086,0.000479,120]
[355648986,1741433443037,-124.54883915,0.000479,120]
[355648987,1741433443047,-153.2,0.000479,42]
[355648988,1741433443056,-153.2,0.000479,42]
[355648989,1741433443067,-153.2,0.000479,42]
[355648990,1741433443076,-153.2,0.000479,42]
[355648991,1741433443086,-153.2,0.000479,42]
[355648992,1741433443095,-153.2,0.000479,42]
[355648993,1741433443104,-2202.20617245,0.000479,120]
[355648994,1741433443304,-2377.56728849,0.000479,120]
[355649082,1741433445787,-15714.31445255,0.000479,120]
[355649084,1741433445797,-150.0,0.000479,2]
[355649086,1741433445808,-416.66666667,0.000479,120]
[355649088,1741433445817,-231.29520205,0.00048178,120]
[355649090,1741433445827,-500.0,0.00048228,91]
[355649092,1741433445836,-500.0,0.00048328,98]
[355649094,1741433445846,-151.6103626,0.00048333,2]
[355649096,1741433445855,-438.48729352,0.00048361,41]
[355649098,1741433445864,-306.9034754,0.00048361,2]
[355649100,1741433445873,-600.0,0.00048361,2]
[355649102,1741433445882,-151.6103626,0.00048367,2]
[355649104,1741433445892,-516.06,0.0004837,10]
[355649106,1741433445902,-709.24,0.0004837,10]
[355649108,1741433445911,-591.04,0.0004837,10]
[355649110,1741433445921,-500.0,0.00048379,120]
[355649111,1741433445930,-500.0,0.00048379,2]
[355649112,1741433445939,-600.31700274,0.00048379,120]
[355649113,1741433445949,-500.0,0.00048379,2]
[355649114,1741433445962,-500.0,0.00048379,2]
[355649115,1741433445971,-500.0,0.00048379,2]
[355649116,1741433445980,-500.0,0.00048379,2]
[355649117,1741433445990,-500.0,0.00048379,2]
[355649118,1741433446000,-500.0,0.00048379,2]
[355649119,1741433446009,-500.0,0.00048379,2]
[355649120,1741433446019,-532.43146913,0.00048379,2]
[355649121,1741433446028,-339.15902144,0.00048379,2]
[355649122,1741433446038,-500.0,0.00048379,2]
[355649123,1741433446048,-500.0,0.00048379,2]
[355649124,1741433446057,-500.0,0.00048379,2]
[355649125,1741433446066,-500.0,0.00048379,2]
[355649126,1741433446075,-500.0,0.00048379,2]
[355649127,1741433446084,-500.0,0.00048379,2]
[355649128,1741433446093,-500.0,0.00048379,2]
[355649129,1741433446102,-500.0,0.00048379,2]
[355649130,1741433446111,-500.0,0.00048379,2]
[355649131,1741433446122,-500.0,0.00048379,2]
[355649132,1741433446132,-500.0,0.00048379,2]
[355649134,1741433446141,-500.0,0.00048379,2]
[355649136,1741433446151,-500.0,0.00048379,2]
[355649138,1741433446161,-500.0,0.00048379,2]
[355649140,1741433446171,-500.0,0.00048379,2]
[355649142,1741433446180,-287.45,0.0004838,30]
[355649144,1741433446190,-21998.3186773,0.0004838,120]
[355649146,1741433446200,-11308.66649654,0.0004838,4]
[355649181,1741433446521,-33.31479746,0.0004838,4]
[355649362,1741433540234,153.28,0.000382,31]
[355649363,1741433540300,153.28,0.000382,31]
[355649364,1741433540368,153.28,0.00043,33]
[355649365,1741433540452,153.28,0.00043,33]
[355649366,1741433540481,153.28,0.00043,33]
[355649367,1741433540539,153.28,0.00043,33]
[355649378,1741434357120,-161.931295,0.0003589,2]
[355649379,1741434357148,-153.31,0.000382,31]
[355649380,1741434357169,-801.22470272,0.000389,8]
[355649382,1741434408078,-206.90415627,0.000389,8]
[355649384,1741434429074,-892.50459081,0.000389,8]
[355649385,1741434429096,-342.11581586,0.00039999,5]
[355649386,1741434441116,-150.77584802,0.00038,7]
[355649387,1741434442078,-1869.91640355,0.00038,7]
[355649391,1741434454086,-1123.84116104,0.00038,7]
[355649393,1741434546074,-7111.01768086,0.00038,7]
[355649394,1741434546099,-231.29520205,0.00039899,119]
[355649395,1741434546123,-1837.27900157,0.000399,8]
[355649396,1741434546146,-21256.88405087,0.0004,15]
[355649397,1741434547071,-61.05698482,0.0004,15]
[355649398,1741434547092,-189.625247,0.00041449,2]
[355649399,1741434547120,-153.31,0.00043,33]
[355649400,1741434547146,-153.31,0.00043,33]
[355649401,1741434547167,-161.931295,0.00044315,2]
[355649402,1741434569139,-157.16,0.00046465,2]
[355649403,1741434569160,-1693.64974055,0.00046475,2]
[355649404,1741434569181,-73.74516493,0.00046575,10]
[355649724,1741434632079,-365.5060909,0.00047411,4]
[355649725,1741434632090,-153.31,0.000479,42]
[355649726,1741434632100,-153.31,0.000479,42]
[355649727,1741434632111,-1000.0,0.00048,120]
[355649728,1741434632121,-802.58474361,0.00048192,2]
[355649729,1741434632131,-151.61036261,0.00048215,2]
[355649730,1741434632140,-600.0,0.00048261,2]
[355649731,1741434632150,-157.16,0.0004827,2]
[355649732,1741434632159,-157.16,0.0004827,2]
[355649733,1741434632172,-157.16,0.0004827,2]
[355649735,1741434632182,-157.16,0.0004827,2]
[355649737,1741434632192,-157.16,0.0004827,2]
[355649739,1741434632202,-500.0,0.00048273,2]
[355649741,1741434632210,-503.70521121,0.00048273,10]
[355649743,1741434632219,-500.0,0.00048273,10]
[355649746,1741434632229,-506.04010614,0.00048273,10]
[355649749,1741434632238,-500.0,0.00048273,2]
[355649752,1741434632247,-500.0,0.00048279,2]
[355649755,1741434632257,-614.71460768,0.00048279,2]
[355649758,1741434632267,-10974.62075,0.00048279,7]
[355649760,1741434632277,-500.0,0.0004828,2]
[355649761,1741434632286,-242.49,0.0004828,30]
[355649762,1741434632296,-202.07,0.0004828,30]
[355649764,1741434632305,-168.39,0.0004828,30]
[355649766,1741434632315,-181.95801493,0.0004828,30]
[355649818,1741434644437,-660.04198507,0.0004828,30]
[355649819,1741434644447,-260.29,0.0004828,10]
[355649820,1741434644457,-496.36,0.0004828,10]
[355649821,1741434644466,-413.63,0.0004828,10]
[355649822,1741434644476,-344.7,0.0004828,10]
[355649823,1741434644489,-1798.67801493,0.0004828,4]
[355649838,1741434678346,416.66666667,0.00028,3]
[355649839,1741434745863,153.25,0.000382,31]
[355649840,1741434745923,153.25,0.000382,31]
[355649841,1741434745985,153.25,0.00043,33]
[355649842,1741434746045,153.25,0.00043,33]
[355649843,1741434746135,153.25,0.00043,33]
[355649844,1741434746171,153.25,0.00043,33]
[355649850,1741435539125,-162.506664,0.0003589,2]
[355649851,1741435539152,-153.29,0.000382,31]
[355649852,1741435539173,-1398.53976163,0.000389,8]
[355649854,1741435636106,-189.6252486,0.00041873,2]
[355649855,1741435636130,-1811.02413404,0.000419,9]
[355649856,1741435636160,-153.29,0.00043,33]
[355649857,1741435636186,-153.29,0.00043,33]
[355649858,1741435636210,-17.07636887,0.00043278,5]
[355649859,1741435638128,-532.92363113,0.00043278,5]
[355649860,1741435638155,-2345.49139788,0.00043279,2]
[355649862,1741435647079,-1671.54151822,0.00043279,2]
[355649863,1741435648076,-746.02895345,0.00043279,2]
[355649868,1741435749078,-5519.40547715,0.00043279,2]
[355649869,1741435749103,-162.506664,0.00043667,2]
[355649870,1741435750090,-173.029,0.00044878,120]
[355649872,1741435784114,235.49622947,0.00041179,2]
[355649905,1741435837061,250.22209,0.000432,120]
[355649917,1741435838038,-160.0,0.00046034,2]
[355649918,1741435838048,-235.49622947,0.00046179,2]
[355649919,1741435838057,-530.67,0.00046433,9]
[355649920,1741435838067,-1143.22592201,0.000469,10]
[355649921,1741435838091,-607.43074105,0.000469,10]
[355649922,1741435838101,-522.72,0.00047111,9]
[355649923,1741435838110,-1083.70349016,0.00047311,2]
[355649924,1741435838120,-1218.871571,0.00047411,4]
[355649925,1741435838130,-600.0,0.00047614,2]
[355649926,1741435838139,-242.98704919,0.000478,120]
[355649927,1741435838148,-153.29,0.000479,42]
[355649928,1741435838158,-153.29,0.000479,42]
[355649929,1741435838167,-1000.0,0.0004791,6]
[355649930,1741435838177,-8681.16,0.00048,90]
[355649931,1741435838186,-1000.0,0.00048,2]
[355649932,1741435838197,-403888.0,0.00048,120]
[355649933,1741435838207,-1000.0,0.00048047,6]
[355649934,1741435838216,-246.8061599,0.0004805,2]
[355649935,1741435838226,-246.80615989,0.00048056,2]
[355649936,1741435838236,-1675.02801666,0.00048061,2]
[355649937,1741435838245,-246.80615989,0.00048062,2]
[355649938,1741435838255,-246.80615989,0.00048067,2]
[355649939,1741435838264,-246.80615989,0.00048073,2]
[355649940,1741435838273,-500.0,0.00048099,2]
[355649941,1741435838283,-500.0,0.00048099,2]
[355649942,1741435838371,-500.0,0.00048099,2]
[355649943,1741435838404,-500.0,0.00048099,2]
[355649944,1741435838416,-620.0,0.00048099,2]
[355649945,1741435838426,-606.52966414,0.00048099,2]
[355649946,1741435838435,-2637879.50924916,0.000481,4]
[355649947,1741435838445,-601.3447221,0.0004811,2]
[355649948,1741435838456,-596.41,0.0004814,10]
[355649949,1741435838465,-497.0,0.0004814,10]
[355649950,1741435838474,-414.17,0.0004814,10]
[355649951,1741435838484,-600.0,0.00048142,2]
[355649952,1741435838493,-6012.95972326,0.0004815,41]
[355649953,1741435838503,-572.21444266,0.0004815,41]
[355649954,1741435838514,-200209.245453,0.0004815,4]
[355649955,1741435838524,-399.55230056,0.0004815,4]
[355649956,1741435838533,-20020.9245453,0.00048151,4]
[355649957,1741435838543,-999.0,0.00048159,120]
[355649958,1741435838552,-489327.17052417,0.0004816,30]
[355649959,1741435838562,-20020.9245453,0.0004816,4]
[355649960,1741435838571,-199.77615028,0.0004816,4]
[355649961,1741435838581,-2247.839098,0.00048161,60]
[355649962,1741435838590,-156.456156,0.0004817,120]
[355649963,1741435838599,-151.0,0.0004817,120]
[355649964,1741435838609,-151.0,0.0004817,120]
[355649965,1741435838618,-151.0,0.0004817,120]
[355649966,1741435838626,-151.0,0.0004817,120]
[355649967,1741435838635,-151.0,0.0004817,120]
[355649968,1741435838645,-151.0,0.0004817,120]
[355649969,1741435838654,-151.0,0.0004817,120]
[355649970,1741435838663,-151.0,0.0004817,120]
[355649971,1741435838672,-222000.0,0.0004817,2]
[355649972,1741435838683,-151.01694355,0.00048173,5]
[355649973,1741435838693,-435.54620578,0.00048173,10]
[355649974,1741435838702,-13754.84127443,0.0004818,120]
[355649975,1741435838711,-151.0,0.0004818,120]
[355649976,1741435838725,-151.0,0.0004818,120]
[355649977,1741435838734,-151.0,0.0004818,120]
[355649978,1741435838744,-151.0,0.0004818,120]
[355649979,1741435838753,-151.0,0.0004818,120]
[355649980,1741435838764,-151.0,0.0004818,120]
[355649981,1741435838773,-186.510752,0.0004818,120]
[355649982,1741435838783,-1000.0,0.00048184,6]
[355649983,1741435838792,-15555.67399697,0.00048197,2]
[355649984,1741435838801,-416.66666667,0.00048198,2]
[355649985,1741435838810,-1171.09125379,0.000482,120]
[355649986,1741435838820,-151.0,0.000482,28]
[355649987,1741435838830,-151.0,0.000482,24]
[355649988,1741435838839,-151.0,0.00048211,120]
[355649989,1741435838849,-151.0,0.00048211,120]
[355649990,1741435838858,-500.0,0.00048212,93]
[355649991,1741435838868,-151.0,0.00048216,120]
[355649992,1741435838877,-151.0,0.00048216,120]
[355649993,1741435838887,-151.0,0.00048216,120]
[355649994,1741435838895,-255.818195,0.00048221,120]
[355649995,1741435838905,-151.0,0.00048221,120]
[355649996,1741435838915,-443.473,0.00048261,2]
[355649997,1741435838924,-151.0,0.00048261,2]
[355649998,1741435838933,-151.0,0.0004827,120]
[355649999,1741435838943,-151.0,0.0004827,120]
[355650000,1741435838952,-151.0,0.0004827,120]
[355650001,1741435838961,-300.554448,0.0004827,120]
[355650002,1741435838971,-151.0,0.0004827,120]
[355650003,1741435838980,-151.0,0.0004827,120]
[355650004,1741435838989,-501.61592095,0.00048273,10]
[355650005,1741435838999,-500.0,0.00048273,10]
[355650006,1741435839010,-500.0,0.00048273,10]
[355650007,1741435839020,-501.46404722,0.00048273,10]
[355650008,1741435839030,-500.0,0.00048273,10]
[355650009,1741435839039,-500.0,0.00048273,10]
[355650010,1741435839049,-500.0,0.00048273,10]
[355650011,1741435839058,-500.0,0.00048273,10]
[355650012,1741435839068,-458.81781912,0.00048273,3]
[355650013,1741435839077,-500.0,0.00048273,10]
[355650014,1741435839087,-500.0,0.00048273,10]
[355650015,1741435839097,-500.0,0.00048273,2]
[355650016,1741435839106,-501.67916063,0.00048273,10]
[355650017,1741435839115,-500.0,0.00048273,10]
[355650018,1741435839125,-500.0,0.00048273,10]
[355650019,1741435839135,-500.0,0.00048273,2]
[355650020,1741435839145,-151.0,0.00048273,120]
[355650021,1741435839155,-158.581522,0.00048273,120]
[355650022,1741435839164,-151.0,0.00048273,120]
[355650023,1741435839174,-151.0,0.00048273,120]
[355650024,1741435839184,-151.0,0.00048273,120]
[355650025,1741435839193,-151.0,0.00048273,120]
[355650026,1741435839203,-1000.0,0.0004828,120]
[355650027,1741435839212,-13754.84127443,0.0004828,120]
[355650028,1741435839223,-13754.84127443,0.0004828,120]
[355650029,1741435839232,-151.0,0.0004828,120]
[355650030,1741435839242,-151.0,0.0004828,120]
[355650031,1741435839250,-184.451089,0.0004828,120]
[355650032,1741435839261,-151.0,0.0004828,120]
[355650033,1741435839271,-151.0,0.0004828,120]
[355650034,1741435839282,-151.0,0.0004828,120]
[355650035,1741435839292,-151.0,0.0004828,120]
[355650036,1741435839303,-151.595689,0.0004828,120]
[355650037,1741435839312,-230.365613,0.0004828,120]
[355650038,1741435839322,-151.0,0.0004828,120]
[355650039,1741435839331,-151.0,0.0004828,120]
[355650040,1741435839342,-151.0,0.0004828,120]
[355650041,1741435839355,-275.351796,0.0004828,120]
[355650042,1741435839365,-275.351796,0.0004828,120]
[355650043,1741435839375,-151.0,0.0004828,120]
[355650044,1741435839393,-151.0,0.0004828,120]
[355650045,1741435839402,-151.0,0.0004828,120]
[355650046,1741435839412,-151.0,0.0004828,120]
[355650047,1741435839425,-151.0,0.0004828,120]
[355650048,1741435839435,-180.35,0.00048289,30]
[355650049,1741435839444,-13460.56816464,0.00048289,120]
[355650050,1741435839454,-266.275712,0.00048289,120]
[355650051,1741435839464,-151.0,0.00048289,120]
[355650052,1741435839474,-151.0,0.00048289,120]
[355650053,1741435839483,-151.0,0.00048289,120]
[355650054,1741435839493,-215.075188,0.00048289,120]
[355650055,1741435839503,-151.0,0.0004829,110]
[355650056,1741435839513,-1331.302269,0.0004829,3]
[355650057,1741435839522,-1331.302269,0.0004829,3]
[355650058,1741435839532,-151.0,0.0004829,120]
[355650059,1741435839541,-151.0,0.0004829,120]
[355650060,1741435839551,-154.02273,0.0004829,120]
[355650062,1741435839562,-151.0,0.0004829,120]
[355650063,1741435839571,-154.388848,0.0004829,120]
[355650065,1741435839581,-275.351796,0.0004829,120]
[355650067,1741435839590,-275.351796,0.0004829,120]
[355650069,1741435839601,-55555.0,0.000483,120]
[355650071,1741435839610,-151.0,0.000483,120]
[355650073,1741435839620,-151.0,0.000483,120]
[355650075,1741435839630,-258.388722,0.000483,120]
[355650078,1741435839642,-151.0,0.000483,120]
[355650080,1741435839652,-6032.76829364,0.000483,98]
[355650081,1741435839661,-500.0,0.00048312,93]
[355650083,1741435839671,-352.0,0.00048317,30]
[355650085,1741435839681,-352.0,0.00048317,30]
[355650087,1741435839690,-321.46638058,0.00048317,30]
[355650089,1741435839701,-352.0,0.00048317,30]
[355650090,1741435839710,-352.0,0.00048317,30]
[355650091,1741435839721,-352.0,0.00048317,30]
[355650093,1741435839733,-352.0,0.00048317,30]
[355650094,1741435839744,-352.0,0.00048317,30]
[355650095,1741435839754,-352.0,0.00048317,30]
[355650097,1741435839765,-352.0,0.00048317,30]
[355650098,1741435839775,-352.0,0.00048317,30]
[355650099,1741435839784,-352.0,0.00048317,30]
[355650100,1741435839794,-352.0,0.00048317,30]
[355650101,1741435839805,-352.0,0.00048317,30]
[355650102,1741435839814,-352.0,0.00048317,30]
[355650103,1741435839825,-352.0,0.00048317,30]
[355650104,1741435839834,-352.0,0.00048317,30]
[355650105,1741435839843,-352.0,0.00048317,30]
[355650106,1741435839853,-352.0,0.00048317,30]
[355650107,1741435839863,-352.0,0.00048317,30]
[355650109,1741435839875,-352.0,0.00048317,30]
[355650110,1741435839890,-352.0,0.00048317,30]
[355650111,1741435839901,-491.03717399,0.00048317,30]
[355650112,1741435839910,-13754.84127443,0.0004832,120]
[355650113,1741435839920,-13754.84127443,0.0004832,120]
[355650114,1741435839929,-151.0,0.0004832,120]
[355650115,1741435839939,-151.0,0.0004832,120]
[355650116,1741435839948,-275.351796,0.0004832,120]